bitfinex/quotes_SOLUSD_20240625
["timestamp","ask_amount","ask_price","bid_price","bid_amount"]
[1719323004786,107.5880641,137.09,137.0,0.17]
[1719323005094,20.0,137.08,137.0,0.17]
[1719323005596,20.0,137.08,137.01,22.573]
[1719323006383,20.0,137.1,137.02,0.17]
[1719323006583,20.0,137.1,137.02,0.90647729]
[1719323006794,20.0,137.1,137.02,0.17]
[1719323007278,20.0,137.1,137.02,0.90827775]
[1719323007601,20.0,137.1,137.02,0.17]
[1719323007797,20.0,137.1,137.02,0.34]
[1719323007982,17.6357262,137.13,137.02,0.34]
[1719323008504,17.6357262,137.13,137.03,6.6088]
[1719323008712,9.30885694,137.13,137.04,0.34]
[1719323009082,7.56645978,137.14,137.03,6.6088]
[1719323009508,7.56645978,137.14,137.04,0.17]
[1719323009681,7.56645978,137.14,137.04,0.34]
[1719323009886,7.56645978,137.14,137.04,0.17]
[1719323010107,20.0,137.13,137.04,0.34]
[1719323010298,20.0,137.14,137.04,0.34]
[1719323011805,20.0,137.14,137.05,16.4308]
[1719323016105,7.293,137.12,137.07,25.5334]
[1719323016408,20.0,137.14,137.05,23.727]
[1719323016607,7.2938,137.11,137.05,23.727]
[1719323016780,7.2945,137.09,137.05,16.4308]
[1719323016989,18.2314,137.13,137.05,16.4308]
[1719323017182,7.294,137.1,137.05,23.727]
[1719323017581,7.2935,137.11,137.05,23.727]
[1719323017777,20.0,137.14,137.07,7.2953]
[1719323018402,7.2934,137.11,137.06,25.7054]
[1719323019095,7.293,137.12,137.06,27.51830411]
[1719323019612,7.2934,137.11,137.06,25.7054]
[1719323020122,7.2936,137.11,137.06,25.7054]
[1719323020415,7.2936,137.11,137.08,6.4998]
[1719323020713,7.56442622,137.15,137.09,23.4157]
[1719323020900,117.6357262,137.19,137.09,16.1214]
[1719323021092,125.20006534,137.19,137.09,16.1214]
[1719323021294,125.20006534,137.19,137.09,23.4156]
[1719323021694,7.2922,137.14,137.09,23.4156]
[1719323022017,7.2916,137.15,137.1,7.2939]
[1719323022411,7.2916,137.15,137.09,23.4156]
[1719323022787,7.2918,137.14,137.09,23.4156]
[1719323023710,7.2918,137.14,137.09,16.1214]
[1719323024015,18.2261,137.17,137.09,16.1214]
[1719323024016,7.2929,137.12,137.09,16.1214]
[1719323024319,7.2925,137.13,137.09,16.1214]
[1719323024517,25.20006534,137.19,137.09,16.1214]
[1719323024690,7.2905,137.17,137.13,6.1763]
[1719323025804,7.2898,137.18,137.13,6.1763]
[1719323025994,7.2905,137.17,137.13,6.1763]
[1719323026197,7.2911,137.16,137.13,6.1763]
[1719323026502,7.2906,137.17,137.13,6.1763]
[1719323026698,7.2907,137.16,137.13,6.1763]
[1719323026897,152.63983959,137.21,137.13,6.1763]
[1719323027206,18.2233,137.19,137.13,6.1763]
[1719323027519,7.2918,137.14,137.13,6.1763]
[1719323027725,7.2923,137.14,137.1,6.3781]
[1719323028028,18.2257,137.17,137.1,6.3781]
[1719323028323,7.2929,137.12,137.1,6.3781]
[1719323028889,7.2924,137.13,137.1,6.3781]
[1719323029595,18.2257,137.17,137.1,6.3781]
[1719323029596,7.2913,137.15,137.1,6.3781]
[1719323029797,7.2913,137.15,137.1,13.6716]
[1719323029995,118.2225,137.2,137.11,18.2332]
[1719323030251,18.2248,137.18,137.1,6.3781]
[1719323030597,25.78983959,137.21,137.11,7.293]
[1719323030821,25.78983959,137.21,137.12,1.69121433]
[1719323031023,25.78983959,137.21,137.13,0.17]
[1719323031497,118.2213,137.21,137.11,0.17]
[1719323031700,7.291,137.16,137.11,7.6333]
[1719323032209,7.2903,137.17,137.12,7.2928]
[1719323032414,7.2907,137.16,137.11,25.8665]
[1719323032628,7.2914,137.15,137.11,0.34]
[1719323032799,7.292,137.14,137.11,0.17]
[1719323032998,18.2259,137.17,137.1,6.3781]
[1719323033304,7.2916,137.15,137.1,13.672]
[1719323033514,26.85,137.19,137.11,1.45720473]
[1719323033713,7.2904,137.17,137.11,7.2929]
[1719323034036,26.85,137.19,137.1,31.9064]
[1719323034715,18.2244,137.18,137.1,24.6126]
[1719323035026,7.2918,137.14,137.1,24.6126]
[1719323035232,7.2899,137.18,137.12,18.232]
[1719323035399,7.2903,137.17,137.13,0.17]
[1719323035595,7.2903,137.17,137.12,18.232]
[1719323035596,7.2903,137.17,137.12,25.5245]
[1719323036300,7.2908,137.16,137.11,7.6332]
[1719323037326,45.0732,137.19,137.11,0.17]
[1719323037710,7.2909,137.16,137.11,7.463]
[1719323038034,7.2913,137.15,137.11,0.17]
[1719323038722,18.2256,137.17,137.1,6.3781]
[1719323039022,7.2921,137.14,137.1,6.3781]
[1719323039214,7.2924,137.13,137.1,6.3781]
[1719323040342,18.2256,137.17,137.1,6.3781]
[1719323040629,7.2914,137.15,137.1,31.9066]
[1719323040808,7.293,137.12,137.1,6.3781]
[1719323041007,7.2924,137.13,137.1,6.3781]
[1719323041202,18.2276,137.16,137.1,6.3781]
[1719323041203,7.2929,137.12,137.1,6.3781]
[1719323042524,7.2934,137.11,137.1,6.3781]
[1719323042736,7.293,137.12,137.1,6.3781]
[1719323044041,7.2925,137.13,137.1,6.3781]
[1719323044247,7.2917,137.15,137.1,13.672]
[1719323044415,7.2919,137.14,137.1,6.3781]
[1719323044950,7.2929,137.12,137.1,6.3781]
[1719323045276,7.2925,137.13,137.1,6.3781]
[1719323045813,45.0768,137.17,137.1,6.3781]
[1719323046019,7.2921,137.14,137.1,6.3781]
[1719323046313,7.2932,137.12,137.1,6.3781]
[1719323046526,145.0768,137.17,137.1,6.3781]
[1719323046527,7.2921,137.14,137.1,6.3781]
[1719323046942,26.85,137.17,137.1,6.3781]
[1719323047153,7.2901,137.18,137.11,0.17]
[1719323047322,7.2901,137.18,137.13,7.2921]
[1719323047522,9.30885694,137.19,137.11,0.17]
[1719323047738,7.2918,137.14,137.1,6.3781]
[1719323048253,7.292,137.14,137.1,6.3781]
[1719323048422,7.2923,137.13,137.1,6.3781]
[1719323048623,7.2919,137.14,137.1,6.3781]
[1719323048823,7.2924,137.13,137.1,6.3781]
[1719323049228,7.2917,137.15,137.1,6.3781]
[1719323049443,45.0756,137.17,137.1,6.3781]
[1719323049747,7.2923,137.13,137.1,6.3781]
[1719323050056,7.2932,137.12,137.1,6.3781]
[1719323050239,18.2283,137.15,137.1,6.3781]
[1719323050759,7.2924,137.13,137.1,6.3781]
[1719323051853,126.85,137.17,137.09,15.9514]
[1719323052154,7.2939,137.1,137.06,21.9406]
[1719323053247,7.2945,137.09,137.06,21.9406]
[1719323054050,18.2325,137.12,137.06,15.6395]
[1719323054345,7.2946,137.09,137.03,31.6934]
[1719323054723,7.2946,137.09,137.04,7.2971]
[1719323054938,15.2455,137.15,137.05,18.2408]
[1719323054939,7.2937,137.11,137.05,18.2408]
[1719323055144,133.4743,137.15,137.06,7.2955]
[1719323055331,7.2929,137.12,137.07,7.2951]
[1719323055748,7.2924,137.13,137.08,7.2949]
[1719323055950,20.0,137.14,137.06,15.4835]
[1719323056158,7.2935,137.11,137.06,22.7795]
[1719323057658,7.2924,137.13,137.09,6.573]
[1719323057833,9.30885694,137.17,137.09,6.573]
[1719323058035,7.2908,137.16,137.11,7.2933]
[1719323058353,33.3158,137.18,137.09,24.8086]
[1719323058354,118.2249,137.18,137.09,24.8086]
[1719323058730,7.2918,137.14,137.09,32.1029]
[1719323059027,7.2925,137.13,137.09,6.573]
[1719323059656,7.292,137.14,137.09,6.573]
[1719323059850,7.2923,137.13,137.09,6.573]
[1719323060438,26.85,137.17,137.09,6.573]
[1719323060439,7.2929,137.12,137.09,6.573]
[1719323060644,45.0761,137.17,137.09,6.573]
[1719323060951,7.2931,137.12,137.09,6.573]
[1719323061151,7.2934,137.11,137.09,6.573]
[1719323061655,100.0,137.16,137.09,6.573]
[1719323061850,7.2934,137.11,137.09,6.573]
[1719323062236,18.2284,137.15,137.09,6.573]
[1719323062438,7.2935,137.11,137.09,6.573]
[1719323062765,7.2937,137.11,137.09,6.573]
[1719323063359,7.293,137.12,137.09,6.573]
[1719323063542,7.2934,137.11,137.09,6.573]
[1719323064143,7.2939,137.1,137.06,15.4835]
[1719323064361,7.2939,137.1,137.06,21.9093]
[1719323065643,7.2936,137.11,137.06,29.2053]
[1719323066269,7.294,137.1,137.06,21.9093]
[1719323067269,7.2936,137.11,137.06,29.2053]
[1719323068264,18.2311,137.13,137.06,21.9093]
[1719323068567,7.2941,137.1,137.06,21.9093]
[1719323068746,18.2311,137.13,137.06,21.9093]
[1719323068747,7.2947,137.09,137.06,15.4835]
[1719323068951,7.2951,137.08,137.06,15.4835]
[1719323069255,7.2952,137.08,137.06,15.4835]
[1719323070275,7.2946,137.09,137.06,15.4835]
[1719323070446,7.294,137.1,137.06,15.4835]
[1719323070768,7.2937,137.11,137.06,22.7791]
[1719323071162,7.2939,137.1,137.06,22.7791]
[1719323071363,18.2326,137.12,137.06,15.4835]
[1719323071542,7.2946,137.09,137.06,15.4835]
[1719323072347,7.295,137.08,137.06,15.4835]
[1719323076669,8.96,137.07,137.03,23.1713]
[1719323076880,8.96,137.05,137.03,23.1713]
[1719323077190,8.96,137.04,136.99,23.1161]
[1719323077354,8.96,137.01,136.99,23.1161]
[1719323078173,8.96,137.0,136.99,23.1161]
[1719323078472,8.96,137.0,136.99,16.6463]
[1719323079274,7.2988,137.01,136.99,16.6463]
[1719323079470,7.2983,137.02,136.99,16.6463]
[1719323079689,7.2978,137.03,136.99,16.6463]
[1719323080377,7.2982,137.02,136.99,16.6463]
[1719323080780,7.2992,137.0,136.96,6.0646]
[1719323080985,26.91,137.04,136.96,6.0646]
[1719323080986,7.2986,137.02,136.96,6.0646]
[1719323081197,7.2986,137.02,136.97,0.44393481]
[1719323081399,7.2978,137.03,136.97,7.74463481]
[1719323082267,7.2978,137.03,136.98,7.3002]
[1719323082593,7.2978,137.03,136.97,7.3007]
[1719323082828,18.2406,137.06,136.96,13.7059]
[1719323083002,7.2988,137.01,136.96,6.0646]
[1719323083170,118.2434,137.04,136.96,6.0646]
[1719323083494,7.3002,136.99,136.96,6.0646]
[1719323083691,7.3004,136.98,136.96,6.0646]
[1719323084068,7.301,136.97,136.95,16.1916]
[1719323085374,7.3003,136.98,136.95,16.1916]
[1719323085570,7.3014,136.96,136.95,16.1916]
[1719323085774,7.3014,136.96,136.93,6.4855]
[1719323086287,7.3019,136.95,136.93,6.4855]
[1719323086794,7.3024,136.94,136.92,16.8174785]
[1719323086995,7.3017,136.96,136.92,16.8174785]
[1719323087497,7.3021,136.95,136.92,16.8174785]
[1719323088196,9.30885694,137.01,136.92,16.8174785]
[1719323088397,7.299,137.01,136.96,7.3013]
[1719323088999,23.66516926,137.04,136.96,8.47812492]
[1719323089177,7.2985,137.02,136.97,7.3007]
[1719323089382,7.2985,137.02,136.96,15.45303953]
[1719323089587,7.2985,137.02,136.97,7.3007]
[1719323089980,7.2988,137.01,136.96,15.45313953]
[1719323090320,7.3001,136.99,136.96,6.281]
[1719323090690,7.2994,137.0,136.96,6.281]
[1719323090996,7.2988,137.01,136.96,13.5823]
[1719323091399,7.2992,137.0,136.96,6.281]
[1719323091577,7.2989,137.01,136.96,13.5823]
[1719323091779,7.2989,137.01,136.97,7.3008]
[1719323091981,7.2976,137.04,136.99,7.2997]
[1719323092185,7.2976,137.04,137.0,7.2992]
[1719323092400,7.2962,137.06,137.01,7.2987]
[1719323092777,7.2967,137.05,137.0,25.5466]
[1719323093097,7.2964,137.06,137.01,7.2984]
[1719323093286,7.2956,137.07,137.02,13.5018]
[1719323093488,7.2961,137.06,137.02,6.2038]
[1719323093879,7.2966,137.05,137.02,6.2038]
[1719323094507,7.2971,137.04,137.02,6.2038]
[1719323094796,7.2976,137.03,137.02,6.2038]
[1719323095005,18.2404,137.06,136.99,6.2401]
[1719323095211,7.298,137.03,136.99,6.2401]
[1719323096702,7.2971,137.04,136.99,13.5396]
[1719323096997,35.8722262,137.09,136.99,24.4891]
[1719323097204,27.54535694,137.09,137.0,0.34]
[1719323097378,9.30885694,137.09,137.01,18.2466]
[1719323097584,7.2957,137.07,137.02,7.298]
[1719323097795,26.56016926,137.12,137.03,34.8915]
[1719323097984,7.2955,137.07,137.03,34.8915]
[1719323098399,7.2951,137.08,137.03,23.9452]
[1719323098602,7.2955,137.07,137.03,16.6477]
[1719323099096,7.295,137.08,137.03,23.9449]
[1719323099301,7.295,137.08,137.04,0.17]
[1719323099898,7.295,137.08,137.03,23.9449]
[1719323100095,7.2961,137.06,137.03,16.6477]
[1719323100404,26.91,137.1,137.03,16.6477]
[1719323100618,7.2951,137.08,137.03,23.9452]
[1719323100913,18.2365,137.09,137.03,16.6477]
[1719323101095,127.25,137.1,136.99,21.6947]
[1719323101275,18.2391,137.07,137.0,0.17]
[1719323101475,7.2969,137.05,137.0,7.469]
[1719323101711,18.2391,137.07,136.99,21.6947]
[1719323101915,7.298,137.03,136.99,21.6947]
[1719323102088,7.2973,137.04,136.99,28.9944]
[1719323102603,7.2977,137.03,136.99,21.6947]
[1719323102989,100.0,137.08,136.99,21.6947]
[1719323102990,18.2416,137.05,136.99,21.6947]
[1719323103189,7.2966,137.05,137.0,7.2989]
[1719323103397,7.2967,137.05,137.0,8.75653267]
[1719323103893,7.2961,137.06,137.01,7.2985]
[1719323104093,18.2373,137.09,137.02,8.75501993]
[1719323104094,7.2956,137.07,137.02,8.75501993]
[1719323104401,7.2962,137.06,137.02,1.45721993]
[1719323104615,7.2966,137.05,137.02,1.45721993]
[1719323104780,18.2373,137.09,137.02,8.75531993]
[1719323104981,7.2958,137.07,137.02,8.75531993]
[1719323105393,7.2961,137.06,137.02,1.45721993]
[1719323105807,34.16378714,137.12,137.03,18.2438]
[1719323106014,14.89671788,137.12,137.07,7.2954]
[1719323106216,7.2935,137.11,137.06,7.2959]
[1719323106379,18.2293,137.15,137.07,7.2953]
[1719323106701,7.2935,137.11,137.06,7.2959]
[1719323106917,107.6004143,137.16,137.05,25.7074]
[1719323107083,7.294,137.1,137.06,0.34]
[1719323107289,7.2933,137.12,137.06,7.6357]
[1719323107493,7.2933,137.12,137.07,7.2954]
[1719323107709,7.2924,137.13,137.08,13.34359452]
[1719323107915,26.55486926,137.16,137.09,22.4667]
[1719323108081,7.2928,137.13,137.09,22.4667]
[1719323108400,7.293,137.12,137.09,22.4667]
[1719323108912,26.55486926,137.16,137.09,22.4667]
[1719323109411,7.2935,137.11,137.09,22.4667]
[1719323109614,7.293,137.12,137.09,22.4667]
[1719323109785,7.2934,137.11,137.09,22.4667]
[1719323110085,100.0,137.15,137.05,6.0652]
[1719323110283,15.8296,137.14,137.05,6.0652]
[1719323110610,44.15646926,137.14,137.05,6.0652]
[1719323110786,18.2317,137.13,137.05,6.0652]
[1719323110990,7.295,137.08,137.05,6.0652]
[1719323111406,7.2946,137.09,137.05,6.0652]
[1719323111896,7.295,137.08,137.05,6.0652]
[1719323112095,7.2958,137.07,137.05,6.0652]
[1719323112302,18.2366,137.09,137.03,15.3212]
[1719323112499,7.2969,137.05,137.03,15.3212]
[1719323112834,7.2961,137.06,137.03,15.3212]
[1719323113185,7.2967,137.05,137.03,15.3212]
[1719323113392,18.239,137.07,137.01,6.5174]
[1719323113589,7.298,137.03,137.01,6.5174]
[1719323113990,7.297,137.05,137.01,6.5174]
[1719323114192,7.296,137.07,137.02,7.2978]
[1719323114494,18.2359,137.1,137.01,24.7634]
[1719323114495,7.297,137.05,137.01,13.816]
[1719323114690,7.2961,137.06,137.01,13.816]
[1719323114899,7.2966,137.05,137.01,6.5174]
[1719323115095,7.296,137.06,137.02,0.17]
[1719323115606,7.2966,137.05,137.01,6.5174]
[1719323115807,18.2378,137.08,137.01,6.5174]
[1719323116194,18.241,137.06,137.01,6.5174]
[1719323116410,18.241,137.06,136.99,15.4312]
[1719323116626,7.2991,137.01,136.99,15.4312]
[1719323116921,7.2983,137.02,136.99,15.4312]
[1719323117098,7.2978,137.03,136.99,15.4312]
[1719323117598,7.2982,137.02,136.99,15.4312]
[1719323117825,7.2978,137.03,136.99,15.4312]
[1719323118024,7.2972,137.04,136.99,22.7309]
[1719323118728,24.587,137.09,137.03,18.2438]
[1719323118729,7.2946,137.09,137.03,18.2438]
[1719323118931,9.30885694,137.11,137.03,18.2438]
[1719323119102,7.2951,137.08,137.03,25.5411]
[1719323119414,7.2945,137.09,137.04,7.467]
[1719323119916,7.2929,137.12,137.07,7.2953]
[1719323120125,8.32686926,137.14,137.08,1.62792293]
[1719323120313,7.2925,137.13,137.08,13.4975]
[1719323120633,7.2928,137.12,137.08,6.2025]
[1719323121001,7.60018302,137.16,137.09,7.294]
[1719323121302,7.60018302,137.16,137.1,0.17]
[1719323121507,7.2907,137.16,137.11,7.2929]
[1719323121815,7.2907,137.16,137.12,6.59163228]
[1719323122014,7.2887,137.2,137.14,7.2914]
[1719323122211,16.90644847,137.21,137.15,13.55141563]
[1719323122412,7.2886,137.2,137.15,6.5441]
[1719323122612,7.2893,137.19,137.15,6.5441]
[1719323122846,7.2897,137.18,137.15,6.5441]
[1719323123334,18.2196,137.22,137.15,6.5441]
[1719323123627,26.54646926,137.22,137.15,6.5441]
[1719323123839,26.54646926,137.22,137.12,22.0618]
[1719323124338,7.2902,137.17,137.12,22.0618]
[1719323124631,8.32686926,137.22,137.12,22.0618]
[1719323124632,8.32686926,137.22,137.13,1.62027246]
[1719323125010,7.2895,137.19,137.13,1.62027246]
[1719323125815,7.2897,137.18,137.13,0.17]
[1719323126017,7.2897,137.18,137.13,0.34]
[1719323126328,7.2897,137.18,137.13,7.6322]
[1719323127144,8.32686926,137.22,137.13,0.17]
[1719323127333,7.2911,137.16,137.12,22.0618]
[1719323127532,18.2206,137.21,137.13,4.34160958]
[1719323127717,7.2902,137.17,137.12,29.3544]
[1719323129243,7.2909,137.16,137.12,22.0618]
[1719323129846,100.0,137.19,137.12,22.0618]
[1719323130136,16.0455,137.2,137.1,7.2938]
[1719323130320,7.2912,137.16,137.11,13.13591993]
[1719323130515,7.29,137.18,137.13,7.2921]
[1719323130718,100.0,137.23,137.11,5.84261993]
[1719323130719,7.2908,137.16,137.11,7.2933]
[1719323130924,7.2904,137.17,137.12,0.17]
[1719323131341,7.2904,137.17,137.12,7.4628]
[1719323131513,7.2908,137.16,137.12,0.17]
[1719323131714,7.2908,137.16,137.12,0.34]
[1719323131926,7.2903,137.17,137.12,7.4628]
[1719323132941,7.2907,137.16,137.12,0.17]
[1719323133138,7.2907,137.16,137.12,0.34]
[1719323133715,7.2903,137.17,137.12,7.6328]
[1719323134209,7.2908,137.16,137.12,0.34]
[1719323135031,7.2903,137.17,137.12,7.6328]
[1719323136034,7.2907,137.16,137.12,0.34]
[1719323136231,7.2907,137.16,137.11,25.5264]
[1719323137221,7.2919,137.14,137.1,0.17]
[1719323137454,7.2923,137.13,137.09,13.4862]
[1719323137741,7.2916,137.15,137.09,13.4862]
[1719323137945,7.2919,137.14,137.09,13.4862]
[1719323138438,7.2914,137.15,137.1,7.2938]
[1719323138818,7.2914,137.15,137.11,7.2933]
[1719323139015,7.2909,137.16,137.11,7.2933]
[1719323139220,25.81633921,137.22,137.12,18.2319]
[1719323139556,7.2897,137.18,137.13,7.2919]
[1719323139739,7.2902,137.17,137.12,25.5245]
[1719323140041,7.2907,137.17,137.12,25.5246]
[1719323140253,7.2907,137.17,137.13,7.2923]
[1719323140440,25.81633921,137.22,137.13,7.2923]
[1719323140441,7.2896,137.19,137.13,7.2923]
[1719323140619,7.2899,137.18,137.14,15.3228]
[1719323140821,25.81633921,137.22,137.14,15.3228]
[1719323141016,7.2895,137.19,137.14,22.6145]
[1719323141431,7.2886,137.21,137.16,7.2904]
[1719323141753,7.2886,137.21,137.17,1.45632894]
[1719323142044,7.2886,137.2,137.15,13.4783]
[1719323142247,7.2886,137.2,137.16,0.17]
[1719323142654,7.2882,137.21,137.16,7.4606]
[1719323143035,7.2886,137.2,137.16,0.17]
[1719323143351,7.2882,137.21,137.16,0.17]
[1719323143555,7.2882,137.21,137.16,9.86959325]
[1719323143731,25.81260005,137.25,137.16,18.3964]
[1719323144350,7.2876,137.22,137.17,0.17]
[1719323144526,7.2881,137.21,137.17,0.17]
[1719323144728,25.81260005,137.25,137.16,18.3964]
[1719323144928,7.2882,137.21,137.16,18.3964]
[1719323145235,7.2885,137.21,137.16,18.3964]
[1719323145539,7.2877,137.22,137.16,18.3964]
[1719323145751,7.287,137.23,137.17,0.17]
[1719323145963,7.2871,137.23,137.17,0.17]
[1719323146254,7.2871,137.23,137.17,7.4601]
[1719323146550,7.2871,137.23,137.18,7.4595]
[1719323146757,7.2876,137.22,137.17,0.17]
[1719323148249,7.2865,137.24,137.18,7.2891]
[1719323148454,7.2871,137.23,137.18,7.2891]
[1719323148954,7.2871,137.23,137.17,7.46]
[1719323149136,18.2141,137.26,137.18,0.17]
[1719323149343,18.2141,137.26,137.17,0.17]
[1719323149660,7.2876,137.22,137.17,7.63]
[1719323150146,7.2871,137.23,137.18,7.2895]
[1719323151036,7.2864,137.25,137.19,14.2702]
[1719323151230,118.2131,137.27,137.19,6.6415]
[1719323151558,125.81260061,137.27,137.19,6.6415]
[1719323151732,7.2877,137.22,137.19,6.6415]
[1719323151935,7.2864,137.25,137.19,13.9305]
[1719323152255,140.34600379,137.31,137.2,0.17]
[1719323152441,140.34600379,137.31,137.23,7.2868]
[1719323152442,7.2846,137.28,137.23,7.2868]
[1719323152645,7.285,137.27,137.21,25.5075]
[1719323152838,7.285,137.27,137.22,7.2874]
[1719323153340,60.61120379,137.35,137.27,7.2847]
[1719323153341,15.87923453,137.35,137.27,7.2847]
[1719323153546,9.30885694,137.35,137.27,7.2847]
[1719323153861,127.51085694,137.35,137.26,0.17]
[1719323154069,7.2845,137.28,137.23,29.9733]
[1719323154252,7.2838,137.3,137.24,0.17]
[1719323154465,7.2829,137.31,137.24,18.3851]
[1719323154656,118.2052,137.33,137.24,18.3851]
[1719323154964,7.2843,137.29,137.25,1.63551421]
[1719323155342,7.2834,137.3,137.25,1.63551421]
[1719323155667,7.284,137.29,137.24,25.6714]
[1719323156035,7.284,137.29,137.23,22.6865]
[1719323156036,18.2074,137.31,137.23,22.5165]
[1719323156460,7.2839,137.29,137.24,7.4564]
[1719323156656,18.2038,137.34,137.24,7.2864]
[1719323156862,7.2834,137.3,137.25,0.17]
[1719323157173,100.0,137.33,137.24,0.17]
[1719323157459,18.2038,137.34,137.24,0.17]
[1719323157668,0.17,137.33,137.24,0.17]
[1719323157900,7.2843,137.28,137.24,0.17]
[1719323158040,7.2843,137.28,137.23,48.0203]
[1719323158240,18.2061,137.32,137.24,0.17]
[1719323158441,18.2061,137.32,137.24,3.91054671]
[1719323158871,7.2842,137.29,137.24,11.19684671]
[1719323159246,7.2842,137.29,137.24,7.4563]
[1719323159858,7.2834,137.3,137.25,10.60931926]
[1719323160058,7.2834,137.3,137.26,7.2854]
[1719323160267,7.2834,137.3,137.27,3.32293504]
[1719323160446,7.2834,137.3,137.25,7.2858]
[1719323160647,18.2025,137.35,137.26,0.17]
[1719323160845,7.59322859,137.36,137.27,18.2113]
[1719323161262,7.2824,137.32,137.27,25.4961]
[1719323161676,7.2828,137.31,137.28,0.69022089]
[1719323161874,7.2828,137.31,137.28,0.68660734]
[1719323162065,7.2828,137.31,137.26,7.6253]
[1719323162066,7.2828,137.31,137.27,9.53246774]
[1719323162244,7.2824,137.32,137.27,9.53246774]
[1719323162446,7.2831,137.31,137.26,25.8386]
[1719323162671,7.2824,137.32,137.27,7.2848]
[1719323162849,7.2821,137.33,137.28,26.28905]
[1719323163048,25.79432859,137.36,137.28,18.83475]
[1719323163375,18.2039,137.34,137.28,15.9287]
[1719323163667,18.206,137.32,137.24,15.4355]
[1719323163868,7.2835,137.3,137.25,7.2856]
[1719323164255,7.2835,137.3,137.26,1.45589321]
[1719323164855,7.2839,137.29,137.24,22.7218]
[1719323165053,7.2839,137.29,137.25,0.34]
[1719323165263,7.2834,137.3,137.25,7.6259]
[1719323165773,7.2829,137.31,137.26,7.2849]
[1719323166071,7.2823,137.32,137.27,9.14347493]
[1719323166271,7.2825,137.32,137.27,19.90057493]
[1719323166475,7.2828,137.31,137.27,19.90057493]
[1719323166650,18.201,137.36,137.27,19.90057493]
[1719323166651,7.2824,137.32,137.27,25.6666]
[1719323166851,7.2841,137.29,137.25,0.17]
[1719323167161,18.2034,137.34,137.25,0.17]
[1719323167351,18.2064,137.32,137.24,15.4355]
[1719323167673,7.2843,137.29,137.24,22.7216]
[1719323167982,18.2064,137.32,137.24,15.4355]
[1719323168274,7.285,137.27,137.24,15.4355]
[1719323169151,7.2844,137.28,137.24,15.4355]
[1719323169351,18.2049,137.33,137.24,15.4355]
[1719323169575,7.2838,137.29,137.24,22.7218]
[1719323169863,7.2849,137.27,137.24,15.4355]
[1719323170176,7.2859,137.25,137.23,6.4648]
[1719323172556,18.2051,137.33,137.24,7.2865]
[1719323172867,7.2847,137.28,137.23,7.2869]
[1719323173073,7.2842,137.29,137.24,7.286]
[1719323173274,18.2051,137.33,137.23,25.5031]
[1719323173275,7.2845,137.28,137.23,25.5031]
[1719323174058,7.2849,137.27,137.23,18.2163]
[1719323174259,7.2849,137.27,137.22,7.6273]
[1719323174675,7.2845,137.28,137.23,7.287]
[1719323174960,7.2849,137.27,137.22,25.846]
[1719323175455,27.51275694,137.34,137.24,18.2157]
[1719323175768,18.2039,137.34,137.26,7.2849]
[1719323175954,7.2829,137.31,137.27,3.46692324]
[1719323176349,7.2829,137.31,137.27,10.07742324]
[1719323176555,7.2833,137.3,137.27,10.07742324]
[1719323176768,7.2839,137.29,137.27,6.6105]
[1719323177103,7.2857,137.26,137.23,6.6105]
[1719323177471,45.0516,137.28,137.23,6.6105]